Cogmind - Beta 14 @@@ ROGUE MODE // 2024.09.30 @ 21:30:09 Player: CONM Result: Destroyed self with EMP Blaster Performance ------------- Evolutions (0) 0 Regions Visited (4) 800 Robots Destroyed (29) 145 Value Destroyed (452) 452 Prototype IDs (27) 540 Alien Tech Used (0) 0 Bonus (305) 305 TOTAL SCORE: 2242 Bonus ------- Follower Combat Kills 32 Aligned with FarCom 300 Friendly Fire -27 Cogmind --------- Core Integrity 0/250 Matter 262/300 Energy 31/125 System Corruption 3% Temperature Cool (0) Movement Walking (260) Ox2 Location -9/Mines Parts ------- > --- POWER (1) -------- Light Ion Engine > --- PROPULSION (2) --- Aluminum Leg > --- UTILITY (2) ------ Large Storage Unit Visual Processing Unit > --- WEAPON (2) ------- EMP Blaster Hammer > --- INVENTORY (15) --- Light Ion Engine Improved Ion Engine Improved Ion Engine Improved Ion Engine Light Nuclear Core Disposable Heat Sink High-capacity Matter Pod (0) Structural Scanner Hardened Light Armor Plating Hardened Light Armor Plating Skeleton Box EMP Blaster Peak State ------------ > --- POWER ------------ Improved Ion Engine > --- PROPULSION ------- Aluminum Leg Aluminum Leg > --- UTILITY ---------- Large Storage Unit Visual Processing Unit > --- WEAPON ----------- Assault Rifle EMP Blaster > --- INVENTORY -------- Light Ion Engine Light Ion Engine Improved Ion Engine Improved Ion Engine Improved Ion Engine Light Nuclear Core Aluminum Leg Aluminum Leg Disposable Heat Sink High-capacity Matter Pod Hardened Light Armor Plating Hardened Light Armor Plating Assault Rifle EMP Blaster Hammer [Rating: 12] Favorites ----------- Power Improved Ion Engine Engine Improved Ion Engine Propulsion Aluminum Leg Leg Aluminum Leg Utility Large Storage Unit Device Seismic Detector Storage Large Storage Unit Processor Visual Processing Unit Weapon Assault Rifle Ballistic Gun Assault Rifle Launcher EMP Blaster Impact Weapon Hammer Build | -11 -10 -10 -10 -9 ------- Run | Yrd Mat Min Exi Min Slots Evolved . | . . . . . Power . | . . . . . Propulsion . | . . . . . Utility . | . . . . . Weapon . | . . . . . Parts Attached 19 | 7 8 1 . 3 Power 3 | 1 1 . . 1 Engine 3 | 1 1 . . 1 Core . | . . . . . Reactor . | . . . . . Propulsion 5 | 2 2 . . 1 Treads . | . . . . . Leg 5 | 2 2 . . 1 Wheel . | . . . . . Hover . | . . . . . Flight . | . . . . . Utility 4 | 2 2 . . . Device 1 | 1 . . . . Storage 2 | 1 1 . . . Processor 1 | . 1 . . . Hackware . | . . . . . Protection . | . . . . . Artifact . | . . . . . Weapon 7 | 2 3 1 . 1 Energy Gun . | . . . . . Energy Cannon . | . . . . . Ballistic Gun 3 | 2 1 . . . Ballistic Cannon . | . . . . . Launcher 3 | . 1 1 . 1 Special Weapon . | . . . . . Impact Weapon 1 | . 1 . . . Slashing Weapon . | . . . . . Piercing Weapon . | . . . . . Special Melee Weapon . | . . . . . Unidentified Prototypes . | . . . . . Parts Lost 8 | . 5 . . 3 Power 1 | . . . . 1 Propulsion 4 | . 2 . . 2 Utility 1 | . 1 . . . Weapon 2 | . 2 . . . Highest Loss Streak 3 | . 3 . . 2 To Critical Strikes . | . . . . . Average Slot Usage (%) 93 | . 99 100 85 77 Engine 13 | . 14 14 14 3 Leg 27 | . 28 28 28 16 Device 3 | . 7 . . . Storage 14 | . 14 14 14 14 Processor 10 | . 6 14 14 14 Ballistic Gun 12 | . 24 . . . Launcher 2 | . . 14 . 14 Impact Weapon 7 | . 2 14 14 14 Peak Build Rating 12 | 7 12 12 10 12 Average Rating 9 | 5 9 12 10 9 On Entrance 7 | . 7 10 12 10 Naked Turns . | . . . . . Heaviest Build 33 | 13 33 33 29 29 Greatest Support 20 | 20 20 20 20 20 Greatest Overweight (x) 2 | 1 1 1 1 2 Average Overweight (x) . | . . 1 1 1 Largest Inventory Capacity 15 | 8 15 15 15 15 Average Capacity 14 | 7 14 15 15 15 Most Carried 15 | 1 15 12 14 13 Average Carried 11 | . 12 12 13 12 Final Capacity 15 | 8 15 15 15 15 Final Carried 14 | 1 13 12 14 12 Class Distribution -------------------- 100% | Mutant Dominant Class ---------------- Mutant | -10/Materials Mutant | -10/Mines Mutant | -10/Exiles Mutant | -9/Mines Resources | -11 -10 -10 -10 -9 ----------- Run | Yrd Mat Min Exi Min Matter Collected 576 | 197 204 19 . 156 Remotely . | . . . . . Salvage Created 722 | 13 482 53 . 174 Parts 58 | 5 34 4 . 15 Haulers Intercepted . | . . . . . Recyclers Shooed 2 | . 2 . . . Parts Field Recycled . | . . . . . Retrieved Matter . | . . . . . Parts Self-Destructed . | . . . . . Prevented . | . . . . . Kills | -11 -10 -10 -10 -9 ------- Run | Yrd Mat Min Exi Min Combat Hostiles Destroyed 21 | . 13 3 . 5 Melee 1 | . . . . 1 Guns 7 | . 7 . . . AOE 13 | . 6 3 . 4 Classes Destroyed 6 | 1 5 . . . Worker 2 | . 1 . . 1 Tunneler 1 | 1 . . . . Recycler 2 | . 1 . . 1 Watcher 3 | . 3 . . . Swarmer 16 | . 8 3 . 5 Grunt 5 | . 5 . . . Best Kill Streak 9 | 1 9 3 . 4 Combat Bots Only 7 | . 7 3 . 4 Max Kills in Single Turn 2 | 1 2 2 . 2 Gunslinging . | . . . . . Exploded 2 | . 2 2 . 2 Melee 1 | . . . . 1 Uniques/NPCs Destroyed . | . . . . . Combat | -11 -10 -10 -10 -9 -------- Run | Yrd Mat Min Exi Min Hostile Shots Fired 141 | . 99 4 . 38 Missed 44 | . 28 1 . 15 Damage Taken 1106 | . 794 26 . 286 Core 256 | . 142 8 . 106 Absorbed by Shields . | . . . . . Core Remaining (%) 100 | 100 . . . . Volleys Fired 45 | 2 35 2 . 6 Largest 2 | 2 2 1 . 1 Hottest 53 | 40 53 33 . 33 Shots Fired 76 | 4 64 2 . 6 Gun 57 | 4 53 . . . Cannon . | . . . . . Launcher 19 | . 11 2 . 6 Special . | . . . . . Kinetic 57 | 4 53 . . . Thermal . | . . . . . Explosive . | . . . . . Electromagnetic 19 | . 11 2 . 6 Robot Hit Streak 10 | 2 8 10 . 2 Robot Miss Streak 4 | 1 4 . . 1 Penetration Max . | . . . . . Secondary Targets 1 | . 1 . . . Max Gunslinging Chain 1 | . 1 . . . Shots Hit Robots 44 | 3 35 2 . 4 Core Hits 40 | 1 26 3 . 10 Critical Kills . | . . . . . Critical Parts Destroyed . | . . . . . Critical Strikes . | . . . . . Melee Attacks 7 | . 4 . . 3 Impact 7 | . 4 . . 3 Slashing . | . . . . . Piercing . | . . . . . Sneak Attacks . | . . . . . Combat Hostiles . | . . . . . Follow-up Attacks . | . . . . . Damage Inflicted 1121 | 34 773 68 . 246 Guns 484 | 34 450 . . . Cannons . | . . . . . Explosions 594 | . 308 68 . 218 Melee 43 | . 15 . . 28 Ramming . | . . . . . Kinetic 484 | 34 450 . . . Thermal 108 | . 108 . . . Explosive . | . . . . . Electromagnetic 486 | . 200 68 . 218 Impact 43 | . 15 . . 28 Slashing . | . . . . . Piercing . | . . . . . Highest Corruption 3 | . 2 2 2 3 Average Corruption 1 | . 1 2 2 2 Corruption Purged . | . . . . . Corruption Blocked . | . . . . . Effects 11 | . 4 1 3 3 Message Errors 3 | . 2 . . 1 Matter Fused 3 | . . . 2 1 Heat Flow Errors 1 | . . . 1 . Energy Discharges 2 | . 1 . . 1 Data Loss (minor) 1 | . . 1 . . Data Loss (major) 1 | . 1 . . . Overload Shots . | . . . . . Overflow Damage 1 | . . . . 1 Projectiles . | . . . . . Explosions 1 | . . . . 1 Melee . | . . . . . Knockbacks . | . . . . . Impact . | . . . . . Kinetic . | . . . . . Secondary . | . . . . . Self-Inflicted Damage 99 | . 25 . . 74 Shots 8 | . 2 . . 6 Rammed . | . . . . . Targets Rammed . | . . . . . Kicked . | . . . . . Crushed . | . . . . . Highest Temperature 214 | . 9 . 214 . Average Temperature 57 | . 3 . 115 . Received Heat Transfer 288 | . 288 . . . Siege Activations . | . . . . . Robots Corrupted . | . . . . . Combat Hostiles . | . . . . . Parts Fried . | . . . . . Impact Corruptions . | . . . . . Robots Melted . | . . . . . Combat Hostiles . | . . . . . Parts Melted . | . . . . . Heat Transferred 150 | . 150 . . . Parts Sabotaged . | . . . . . Parts Stolen . | . . . . . Parts Stripped . | . . . . . Power Chain Reactions 3 | . 2 1 . . Alert | -11 -10 -10 -10 -9 ------- Run | Yrd Mat Min Exi Min Peak Influence 259 | 5 259 177 . 115 Initial 88 | . 3 88 . . Average 97 | 1 102 175 . 79 Maximum Alert Level 1 | . 1 . . . Low Security (%) 86 | 100 80 100 . 100 Level 1 13 | . 19 . . . Level 2 . | . . . . . Level 3 . | . . . . . Level 4 . | . . . . . Level 5 . | . . . . . High Security . | . . . . . Max Security . | . . . . . Squads Dispatched 2 | . 2 . . . Investigation 1 | . 1 . . . Extermination . | . . . . . Reinforcement 1 | . 1 . . . Assault . | . . . . . Garrison . | . . . . . Intercept . | . . . . . Searches Triggered . | . . . . . Construction Impeded . | . . . . . Haulers Reinforced . | . . . . . Active Scanning Responses . | . . . . . Cargo Convoy Interrupts . | . . . . . Stealth | -11 -10 -10 -10 -9 --------- Run | Yrd Mat Min Exi Min Distress Signals 2 | . 2 . . . Communications Jammed . | . . . . . Distress Signals . | . . . . . Times Spotted 36 | . 24 3 . 9 Peak Tracking Total 4 | . 4 3 . 4 Tactical Retreats 1 | . 1 . . . Traps | -11 -10 -10 -10 -9 ------- Run | Yrd Mat Min Exi Min Traps Triggered 1 | . 1 . . . Indirectly . | . . . . . Trap Hack Attempts . | . . . . . Triggered . | . . . . . Disarmed . | . . . . . Reprogrammed . | . . . . . Reused . | . . . . . Traps Extracted . | . . . . . Installed . | . . . . . Triggered . | . . . . . Machines | -11 -10 -10 -10 -9 ---------- Run | Yrd Mat Min Exi Min Machines Disabled 4 | . 4 . . . Max in Single Turn 2 | . 2 . . . Machines Repaired . | . . . . . Machines Dismantled . | . . . . . Machines Sabotaged . | . . . . . Overloaded Fab Kills . | . . . . . Hacking | -11 -10 -10 -10 -9 --------- Run | Yrd Mat Min Exi Min Machines Accessed 5 | . 4 . 1 . Terminals 4 | . 4 . . . Fabricators . | . . . . . Repair Stations . | . . . . . Recycling Units . | . . . . . Scanalyzers . | . . . . . Garrison Access . | . . . . . Total Hacks 11 | . 10 . 1 . Successful 6 | . 5 . 1 . Failed 5 | . 5 . . . Catastrophic 2 | . 2 . . . Database Lockouts . | . . . . . Manual 2 | . 1 . 1 . Terminals 10 | . 10 . . . Fabricators . | . . . . . Repair Stations . | . . . . . Recycling Units . | . . . . . Scanalyzers . | . . . . . Garrison Access . | . . . . . Terminal Hacks 5 | . 4 . 1 . Prototype ID Bank 2 | . 2 . . . Hauler Manifests 1 | . 1 . . . Zone Layout 1 | . 1 . . . Derelict Proto ID Bank 1 | . . . 1 . Fabricator Hacks . | . . . . . Repair Station Hacks . | . . . . . Recycling Unit Hacks . | . . . . . Scanalyzer . | . . . . . Garrison Access Hacks . | . . . . . Unauthorized Hacks 1 | . 1 . . . Terminals 1 | . 1 . . . Botnet 1 | . 1 . . . Fabricators . | . . . . . Repair Stations . | . . . . . Recycling Units . | . . . . . Scanalyzers . | . . . . . Garrison Access . | . . . . . Data Cores Recovered . | . . . . . Used . | . . . . . Hacking Detections 2 | . 2 . . . Full Trace Events 1 | . 1 . . . Feedback Events 1 | . 1 . . . Corruption 1 | . 1 . . . Feedback Blocked . | . . . . . Robot Schematics Acquired . | . . . . . Robots Built . | . . . . . Authchips . | . . . . . Time . | . . . . . Total Robot Build Rating . | . . . . . Part Schematics Acquired . | . . . . . Parts Built . | . . . . . Authchips . | . . . . . Time . | . . . . . Total Part Build Rating . | . . . . . Parts Repaired . | . . . . . Time . | . . . . . Parts Recycled . | . . . . . Recycled Matter . | . . . . . Retrieved Matter . | . . . . . Retrieved Components . | . . . . . Parts Scanalyzed . | . . . . . Part Schematics Acquired . | . . . . . Parts Damaged . | . . . . . Bothacking | -11 -10 -10 -10 -9 ------------ Run | Yrd Mat Min Exi Min Used RIF Installer . | . . . . . Robots Hacked . | . . . . . Non-combat . | . . . . . Combat . | . . . . . Robot Hacks Applied . | . . . . . Relay Couplers Released . | . . . . . Fabnet Peak Effective % . | . . . . . Robots Rewired . | . . . . . Allies Hacked . | . . . . . Hacks Repelled . | . . . . . Allies | -11 -10 -10 -10 -9 -------- Run | Yrd Mat Min Exi Min Total Allies 3 | . . . . 3 Largest Group 3 | . . . . 3 Highest-Rated Group 40 | . . . . 40 Highest-Rated Ally 16 | . . . . 16 Total Orders . | . . . . . Ally Attacks 17 | . . . . 17 Total Damage 140 | . . . . 140 Kills 4 | . . . . 4 Allies Corrupted . | . . . . . Allies Melted . | . . . . . Intel | -11 -10 -10 -10 -9 ------- Run | Yrd Mat Min Exi Min Robot Analysis Total . | . . . . . Derelict Logs Recovered . | . . . . . Drone Launches . | . . . . . Drone Recoveries . | . . . . . Exploration | -11 -10 -10 -10 -9 ------------- Run | Yrd Mat Min Exi Min Turns Passed 1455 | 113 705 118 403 116 Spaces Moved 690 | 84 296 60 212 38 Core 12 | 12 . . . . Treads . | . . . . . Legs 678 | 72 296 60 212 38 Wheels . | . . . . . Hover . | . . . . . Flight . | . . . . . Fastest Speed 50 | 50 120 190 190 190 Average Speed 181 | 113 183 190 190 247 Slowest Speed 260 | 120 190 190 190 260 Overloaded Moves . | . . . . . Propulsion Burnouts . | . . . . . Robots Hopped . | . . . . . Cave-ins Triggered . | . . . . . Exploration Rate (%) 32 | 5 58 23 63 14 Regions Visited 4 Branch Regions 3 Pre-discovered Areas . | . . . . . Known Exits Taken . | . . . . . Unknown Exits Taken 4 | 1 1 1 1 . Scrap Searched . | . . . . . Spaces Dug . | . . . . . Terrain Destroyed 9 | . 5 4 . . Melee . | . . . . . Projectile . | . . . . . AOE 9 | . 5 4 . . Terrain Rammed . | . . . . . Walls Destroyed . | . . . . . Machines Disabled . | . . . . . Actions | -11 -10 -10 -10 -9 --------- Run | Yrd Mat Min Exi Min Total 806 | 94 387 62 213 50 Wait 23 | 1 22 . . . Move 686 | 83 295 59 211 38 Hop . | . . . . . Pick Up 20 | 1 18 . 1 . Fast Attach 9 | 7 1 . . 1 Attach 6 | . 3 1 . 2 Detach 1 | . . . 1 . Swap 4 | . 4 . . . Drop 5 | . 5 . . . Fire 45 | 2 35 2 . 6 Melee 7 | . 4 . . 3 Ram . | . . . . . Kick . | . . . . . Crush . | . . . . . Escape Stasis . | . . . . . Rewire . | . . . . . Trap . | . . . . . Miscellaneous . | . . . . . Route ------- -11/Scrapyard -10/Materials -10/Mines -10/Exiles (discovered 2 exits: [*Min x2]) -9/Mines History --------- Turn | Location | Event 34 | -11/Scrapyard | Discovered new exit (range 12) 114 | -11/Scrapyard | Entered Materials 317 | -10/Materials | Build established: Mutant 709 | -10/Materials | Destroyed 7 combat bots 772 | -10/Materials | Discovered new exit (range 16) 817 | -10/Materials | Core integrity fell below 50% 819 | -10/Materials | Entered Mines 840 | -10/Mines | Lost 3 parts (2n1w) 927 | -10/Mines | Deemed a non-threat by the Exiles lab entrance 929 | -10/Mines | Discovered new exit (range 5) 937 | -10/Mines | Entered Exiles 963 | -10/Exiles | Discovered new exit (range 15) 989 | -10/Exiles | Met 8R-AWN 1016 | -10/Exiles | Met EX-HEX 1071 | -10/Exiles | Met EX-BIN 1098 | -10/Exiles | Aligned with FarCom system 1099 | -10/Exiles | Given EX-Vault access code 1145 | -10/Exiles | Opened EX-Vault 1153 | -10/Exiles | Found Skeleton Box 1194 | -10/Exiles | Warned to stay clear of 0b10 Research branches 1223 | -10/Exiles | Exiles lab attacked by MAIN.C 1317 | -10/Exiles | Discovered new exit (range 15) 1340 | -10/Exiles | Left Exiles lab with Skeleton Box 1340 | -10/Exiles | Entered Mines 1401 | -9/Mines | Assisted by bots powering up and referring to "LRC-V3" 1444 | -9/Mines | Core integrity fell below 20% 1456 | -9/Mines | Destroyed self with EMP Blaster Last Messages --------------- 01401_ Trooper 2a: "Hello LRC-V3. What is your command?" 01401_ Mercenary 2a: "Hello LRC-V3. What is your command?" 01401_ Trooper 2b: "Hello LRC-V3. What is your command?" 01421_ G-34 Mercenary destroyed. 01421_ Acquired 46 matter. 01427_ Acquired Aluminum Leg. 01431_ Mercenary 2a destroyed. 01432_ K-01 Serf collects debris. 01433_ System corrupted: Energy discharge (-39). 01433_ K-01 Serf destroyed. 01436_ Trooper 2b destroyed. 01437_ Acquired 110 matter. 01442_ Aluminum Leg destroyed. 01443_ U-05 Engineer destroyed. 01445_ R-06 Scavenger destroyed. 01446_ S-10 Pest destroyed. 01447_ K-01 Serf destroyed. 01447_ S-10 Pest destroyed. 01451_ S-10 Pest suffers critical hit (Burn). 01451_ S-10 Pest destroyed. Map ----- +----------------------------------------------------+ | | | | | | | | | | | | | | | | | | | | | | | | | ?????????????????????????????????????????????????? | | ?????????????????????????????????????????????????? | | ???????????????????####################??????????? | | ???????????????????# #??????????? | | ???????????????????# #??????????? | | ???????????????????# ##### #??????????? | | ???????????????????### #???# ##?????????? | | ?????????????????????## ! #???#[ ##????????? | | ??????????????????????# ## #??##%= ##???????? | | ??????????????????????## ### #??#== [=#???????? | | ???????????????????????####?# !#??#%= %g%=g ????? | | ?????????????????????########= #??## [ ######???? | | ?????????????????????# =% #???######????????? | | ?????????????????????# @ ! *=#?????????????????? | | ??????????????# ###%s%|#?????????????????? | | ??????????????# r????# [%[=#????????????????? | | ??????????????# #??????# !!= ??????????????? | | ??????????????## ?????????# = ???????????? | | ??????????????????????????# %= ?????????? | | ?????????????????????????? ????????? | | ?????????????????????????? ???????? | | ????????????????????????? #???????? | | ????????????????????????? #???????? | | ????????????????????????? ???????? | | ???????????????????????? ## ???????? | | ???????????????????????? #??# ### ????????? | | ????????????????????????###????# ##??# ?????????? | | ????????????????????????????????###??????????????? | | ?????????????????????????????????????????????????? | | ?????????????????????????????????????????????????? | | ?????????????????????????????????????????????????? | | ?????????????????????????????????????????????????? | | ?????????????????????????????????????????????????? | | ?????????????????????????????????????????????????? | | ?????????????????????????????????????????????????? | | ?????????????????????????????????????????????????? | | ?????????????????????????????????????????????????? | | ?????????????????????????????????????????????????? | +----------------------------------------------------+ Best States ------------- Heat Dissipation 25 Energy Generation 12 Energy Capacity 265 Matter Stores 273 Matter Capacity 300 Sight Range 18 Terrain Scan Density 10 Evasion (%) 55 Item Schematics ----------------- None Robot Schematics ------------------ None Fabricated ------------ Nothing Alien Tech Used ----------------- None Achievements -------------- None Challenges ------------ None Game ------ Seed SensorReactionInitializer Manual? 0 Play Time 00:14:30 Cumulative 88.8 hours Start 2024.09.30 @ 21:06:51 End 2024.09.30 @ 21:30:09 Sessions 1 Manual Loads 0 Difficulty Rogue Special Mode None Game No. 118 Rogue 118 Adventurer 0 Explorer 0 Win Type - Total 0 Types 0/0/0/0/0/0/0/0/0 Lore% 38 Gallery% 39 Achievement% 39 Wizard Run 0 Options --------- Layout 0 ASCII 0 Keyboard 0 Movement Arrows Keybinds 0 Fullscreen 2 Font 18/SmallcapsGlow Map View 76x50 Zoom Use 0% Tactical HUD 1 Map Filters NONE Filters NONE Steam 1 RUN: 7d440d8e-51da-4d9a-9720-70676df8b182